Workbook

Sheet Quarterly Budget Analysis
B3: Quarterly Budget Analysis
B5: =NOW() -> 2010-04-19T17:44:28.430
B6: XYZ Manufacturing, Inc.
B8: For the Quarter Ending: | C8: 2010-03-31
C10: This Quarter | F10: Year-to-Date
B11: Budget Item | C11: Budget | D11: Actual | E11: Variance | F11: Budget | G11: Actual | H11: Variance
B12: Sales Revenue | C12: $500,000 | D12: $550,000 | E12: =IF(SUM(C12:D12),D12-C12,"") -> $50,000 | F12: $1,000,000 | G12: $1,200,000 | H12: =IF(SUM(F12:G12),G12-F12,"") -> $200,000
B13: Cost of sales | C13: 300,000 | D13: 320,000 | E13: =IF(SUM(C13:D13),D13-C13,"") -> 20,000 | F13: 600,000 | G13: 640,000 | H13: =IF(SUM(F13:G13),G13-F13,"") -> 40,000
B14: Gross Profits | C14: =IF(SUM(C12:C13),C12-C13,"") -> $200,000 | D14: =IF(SUM(D12:D13),D12-D13,"") -> $230,000 | E14: =IF(SUM(C14:D14),D14-C14,"") -> $30,000 | F14: =IF(SUM(F12:F13),F12-F13,"") -> $400,000 | G14: =IF(SUM(G12:G13),G12-G13,"") -> $560,000 | H14: =IF(SUM(F14:G14),G14-F14,"") -> $160,000
B15: Variable Expenses
B16: Selling Expenses | C16: $100,000 | D16: $120,000 | E16: =IF(SUM(C16:D16),D16-C16,"") -> $20,000 | F16: $200,000 | G16: $240,000 | H16: =IF(SUM(F16:G16),G16-F16,"") -> $40,000
B17: Inspection | C17: 10,000 | D17: 8,000 | E17: (2,000) | F17: 20,000 | G17: 16,000 | H17: (4,000)
B25: Total Variable Expenses | C25: =IF(SUM(C16:C24),SUM(C16:C24),"") -> $110,000 | D25: $128,000 | E25: $18,000 | F25: $220,000 | G25: $256,000 | H25: $36,000
B26: Fixed Expenses
B27: Rent | C27: $60,000 | D27: $70,000 | E27: =IF(SUM(C27:D27),D27-C27,"") -> $10,000 | F27: $120,000 | G27: $150,000 | H27: =IF(SUM(F27:G27),G27-F27,"") -> $30,000
B28: Depreciation | C28: 20,000 | D28: 19,000 | E28: (1,000) | F28: 40,000 | G28: 38,000 | H28: (2,000)
B36: Total Fixed Expenses | C36: =IF(SUM(C6:C27),SUM(C27:C35),"") -> $80,000 | D36: =IF(SUM(D6:D27),SUM(D27:D35),"") -> $89,000 | E36: $9,000 | F36: =IF(SUM(F6:F27),SUM(F27:F35),"") -> $160,000 | G36: =IF(SUM(G6:G27),SUM(G27:G35),"") -> $188,000 | H36: $28,000
B37: Income From Operations | C37: =IF(SUM(C14,C25,C36),C14-C25-C36,"") -> $10,000 | D37: $13,000 | E37: $3,000 | F37: $20,000 | G37: $116,000 | H37: $96,000
B38: Interest Income | C38: 2,000 | D38: 3,000 | E38: =IF(SUM(C38:D38),D38-C38,"") -> 1,000 | F38: 4,000 | G38: 6,000 | H38: =IF(SUM(F38:G38),G38-F38,"") -> 2,000
B39: Interest Expense | C39: 1,000 | D39: 1,500 | E39: =IF(SUM(C39:D39),D39-C39,"") -> 500 | F39: 2,000 | G39: 3,000 | H39: =IF(SUM(F39:G39),G39-F39,"") -> 1,000
B40: Net Income Before Taxes | C40: =IF(SUM(C37:C39),C37-SUM(C38:C39),"") -> $7,000 | D40: =IF(SUM(D37:D39),D37-SUM(D38:D39),"") -> $8,500 | E40: =IF(SUM(C40:D40),D40-C40,"") -> $1,500 | F40: =IF(SUM(F37:F39),F37-SUM(F38:F39),"") -> $14,000 | G40: =IF(SUM(G37:G39),G37-SUM(G38:G39),"") -> $107,000 | H40: =IF(SUM(F40:G40),G40-F40,"") -> $93,000
B41: Taxes | C41: 2,000 | D41: 1,500 | E41: =IF(SUM(C41:D41),D41-C41,"") -> (500) | F41: 4,000 | G41: 3,000 | H41: =IF(SUM(F41:G41),G41-F41,"") -> (1,000)
B42: Net Income After Taxes | C42: =IF(SUM(C40:C41),C40-C41,"") -> $5,000 | D42: =IF(SUM(D40:D41),D40-D41,"") -> $7,000 | E42: =IF(SUM(C42:D42),D42-C42,"") -> $2,000 | F42: =IF(SUM(F40:F41),F40-F41,"") -> $10,000 | G42: =IF(SUM(G40:G41),G40-G41,"") -> $104,000 | H42: =IF(SUM(F42:G42),G42-F42,"") -> $94,000
B44: Non-Income Statement Items
B45: Loan Repayments | C45: 14,000 | D45: 13,000 | E45: =IF(SUM(C45:D45),D45-C45,"") -> (1,000) | F45: 28,000 | G45: 26,000 | H45: =IF(SUM(F45:G45),G45-F45,"") -> (2,000)
B46: Owner Withdrawals (or dividends) | C46: 20,000 | D46: 25,000 | E46: =IF(SUM(C46:D46),D46-C46,"") -> 5,000 | F46: 20,000 | G46: 25,000 | H46: =IF(SUM(F46:G46),G46-F46,"") -> 5,000
B47: Fixed Asset Expenditures | C47: 100,000 | D47: 90,000 | E47: =IF(SUM(C47:D47),D47-C47,"") -> (10,000) | F47: 100,000 | G47: 90,000 | H47: =IF(SUM(F47:G47),G47-F47,"") -> (10,000)
